Cogmind - Beta 14 @@@ ROGUE MODE // 2025.05.01 @ 13:28:25 Player: celerysam Result: Destroyed by X-57 Shotgunner with Shotgun Performance ------------- Evolutions (2) 1000 Regions Visited (5) 1000 Robots Destroyed (37) 185 Value Destroyed (1406) 1406 Prototype IDs (2) 40 Alien Tech Used (0) 0 Bonus (260) 260 TOTAL SCORE: 3891 Bonus ------- Follower Combat Kills 60 Entered Garrisons 200 Cogmind --------- Core Integrity 0/550 Matter 161/300 Energy 96/100 System Corruption 0% Temperature Cool (0) Movement Core (150) Ox2 Location -8/Garrison Parts ------- > --- POWER (1) -------- (None) > --- PROPULSION (4) --- (None) > --- UTILITY (4) ------ Small Storage Unit > --- WEAPON (2) ------- Improved Light Cannon > --- INVENTORY (8) ---- Advanced Heat Sink Cooling System Large Storage Unit Heavy Particle Gun Improved Assault Rifle Gauss Rifle Peak State ------------ > --- POWER ------------ Light Nuclear Core > --- PROPULSION ------- Airjet Airjet Airjet Airjet > --- UTILITY ---------- Improved Heat Sink Large Storage Unit Structural Scanner ECM Suite > --- WEAPON ----------- Heavy Laser Katana > --- INVENTORY -------- Improved Ion Engine Wheel Airjet Advanced Heat Sink Cooling System Small Storage Unit Structural Scanner Hardened Light Armor Plating Assault Rifle Improved Assault Rifle Gauss Rifle Improved Light Cannon Grenade Launcher Datajack Explosive Trap [Rating: 31] Favorites ----------- Power Ion Engine Engine Ion Engine Power Core Light Nuclear Core Propulsion Light Treads Treads Light Treads Leg Aluminum Leg Wheel Wheel Hover Unit Airjet Utility Large Storage Unit Device ECM Suite Storage Large Storage Unit Weapon Improved Assault Rifle Energy Gun Medium Laser Ballistic Gun Improved Assault Rifle Ballistic Cannon Improved Light Cannon Launcher Grenade Launcher Slashing Weapon Katana Build | -11 -10 -9 -9 -8 -8 ------- Run | Yrd Mat Mat Min Mat Gar Slots Evolved 4 | . . 2 . 2 . Power . | . . . . . . Propulsion 2 | . . 1 . 1 . Utility 2 | . . 1 . 1 . Weapon . | . . . . . . Parts Attached 53 | 6 11 6 5 22 3 Power 6 | 1 1 . 2 2 . Engine 4 | 1 1 . 1 1 . Core 2 | . . . 1 1 . Reactor . | . . . . . . Propulsion 20 | 2 5 1 2 9 1 Treads 5 | . . 1 2 2 . Leg 3 | 2 . . . 1 . Wheel 7 | . 5 . . 2 . Hover 5 | . . . . 4 1 Flight . | . . . . . . Utility 8 | 1 2 1 . 4 . Device 5 | . 1 1 . 3 . Storage 3 | 1 1 . . 1 . Processor . | . . . . . . Hackware . | . . . . . . Protection . | . . . . . . Artifact . | . . . . . . Weapon 19 | 2 3 4 1 7 2 Energy Gun 7 | 2 3 . . 2 . Energy Cannon . | . . . . . . Ballistic Gun 8 | . . 3 1 4 . Ballistic Cannon 1 | . . . . . 1 Launcher 1 | . . . . . 1 Special Weapon . | . . . . . . Impact Weapon . | . . . . . . Slashing Weapon 2 | . . 1 . 1 . Piercing Weapon . | . . . . . . Special Melee Weapon . | . . . . . . Unidentified Prototypes 2 | . . 1 . 1 . Parts Lost 23 | . 6 2 1 3 11 Power 2 | . . 1 . . 1 Propulsion 12 | . 3 . 1 3 5 Utility 3 | . . . . . 3 Weapon 6 | . 3 1 . . 2 Highest Loss Streak 7 | . 3 2 1 3 7 To Critical Strikes . | . . . . . . Average Slot Usage (%) 91 | . 92 86 96 86 64 Engine 9 | . 14 9 9 1 6 Core 1 | . . . 1 7 . Treads 14 | . . 1 31 11 . Wheel 9 | . 23 22 . 1 . Hover 2 | . . . . 10 17 Device 17 | . 6 21 22 26 21 Storage 12 | . 17 11 11 9 9 Energy Gun 10 | . 27 11 . 2 1 Ballistic Gun 10 | . . 7 20 12 . Peak Build Rating 31 | 6 8 13 16 31 30 Average Rating 12 | 3 7 12 14 22 17 On Entrance 11 | . 6 8 11 16 30 Naked Turns . | . . . . . . Heaviest Build 36 | 13 33 34 34 36 19 Greatest Support 60 | 20 26 20 60 40 24 Greatest Overweight (x) 5 | . 3 1 . 4 5 Average Overweight (x) . | . 1 1 . . . Largest Inventory Capacity 15 | 8 15 15 15 15 8 Average Capacity 14 | 6 14 15 15 13 8 Most Carried 15 | 8 12 15 15 15 8 Average Carried 12 | 5 9 13 14 13 7 Final Capacity 15 | 8 15 15 15 8 8 Final Carried 15 | 6 9 15 15 8 6 Class Distribution -------------------- 64% | Infiltrator-Mutant 35% | Mutant Dominant Class ---------------- Mutant | -10/Materials Infiltrator-Mutant | -9/Materials Infiltrator-Mutant | -9/Mines Infiltrator-Mutant | -8/Materials Infiltrator-Mutant | -8/Garrison Resources | -11 -10 -9 -9 -8 -8 ----------- Run | Yrd Mat Mat Min Mat Gar Matter Collected 812 | 207 158 . 177 265 5 Remotely . | . . . . . . Salvage Created 1359 | . 684 154 41 424 56 Parts 69 | . 36 5 2 20 6 Haulers Intercepted 3 | . 2 . . 1 . Recyclers Shooed 1 | . 1 . . . . Parts Field Recycled . | . . . . . . Retrieved Matter . | . . . . . . Parts Self-Destructed . | . . . . . . Prevented . | . . . . . . Kills | -11 -10 -9 -9 -8 -8 ------- Run | Yrd Mat Mat Min Mat Gar Combat Hostiles Destroyed 33 | . 15 4 1 7 6 Melee 1 | . . . . 1 . Guns 25 | . 14 4 1 6 . Cannons 1 | . . . . . 1 AOE 5 | . . . . . 5 Classes Destroyed 8 | . 4 2 . 1 1 Hauler 3 | . 2 . . 1 . Watcher 1 | . 1 . . . . Swarmer 4 | . 3 . . . 1 Cutter 3 | . . . . . 3 Grunt 22 | . 12 2 1 5 2 Duelist 1 | . . 1 . . . Sentry 2 | . . 1 . 1 . Hunter 1 | . . . . 1 . Best Kill Streak 6 | . 6 2 1 2 5 Combat Bots Only 6 | . 6 2 1 2 5 Max Kills in Single Turn 2 | . 1 1 1 1 2 Gunslinging . | . . . . . . Exploded 2 | . . . . . 2 Melee 1 | . . . . 1 . Uniques/NPCs Destroyed . | . . . . . . Combat | -11 -10 -9 -9 -8 -8 -------- Run | Yrd Mat Mat Min Mat Gar Hostile Shots Fired 306 | . 87 27 11 63 118 Missed 101 | . 23 7 2 21 48 Damage Taken 2926 | . 731 272 241 666 1016 Core 894 | . 185 101 54 90 464 Absorbed by Shields 18 | . . . . . 18 Core Remaining (%) 62 | 100 26 . 61 . . Volleys Fired 116 | . 52 14 9 32 9 Largest 2 | . 2 2 2 2 1 Hottest 115 | . 115 88 46 55 55 Shots Fired 203 | . 100 20 18 56 9 Gun 195 | . 100 20 18 56 1 Cannon 2 | . . . . . 2 Launcher 6 | . . . . . 6 Special . | . . . . . . Kinetic 75 | . . 6 18 49 2 Thermal 109 | . 87 14 . 7 1 Explosive 6 | . . . . . 6 Electromagnetic 13 | . 13 . . . . Robot Hit Streak 16 | . 7 9 7 16 6 Robot Miss Streak 4 | . 3 1 4 2 1 Penetration Max . | . . . . . . Secondary Targets 3 | . 1 1 . 1 . Max Gunslinging Chain 1 | . 1 1 . 1 . Shots Hit Robots 153 | . 67 16 13 49 8 Core Hits 79 | . 36 9 2 19 13 Critical Kills . | . . . . . . Critical Parts Destroyed . | . . . . . . Critical Strikes 4 | . 3 . . 1 . Burn 3 | . 3 . . . . Sever 1 | . . . . 1 . Melee Attacks 8 | . . 1 . 7 . Impact . | . . . . . . Slashing 8 | . . 1 . 7 . Piercing . | . . . . . . Sneak Attacks 1 | . . . . 1 . Combat Hostiles . | . . . . . . Follow-up Attacks . | . . . . . . Damage Inflicted 2746 | . 881 235 194 898 538 Guns 2030 | . 881 235 194 704 16 Cannons 41 | . . . . . 41 Explosions 481 | . . . . . 481 Melee 194 | . . . . 194 . Ramming . | . . . . . . Kinetic 955 | . . 74 194 646 41 Thermal 1020 | . 785 161 . 58 16 Explosive 481 | . . . . . 481 Electromagnetic 96 | . 96 . . . . Impact . | . . . . . . Slashing 194 | . . . . 194 . Piercing . | . . . . . . Highest Corruption 1 | . 1 . . . . Average Corruption 1 | . 1 . . . . Corruption Purged . | . . . . . . Corruption Blocked . | . . . . . . Effects 3 | . 3 . . . . Message Errors 1 | . 1 . . . . Matter Fused 1 | . 1 . . . . Parts Fused 1 | . 1 . . . . Overload Shots . | . . . . . . Overflow Damage 77 | . . . . 21 56 Projectiles . | . . . . . . Explosions 56 | . . . . . 56 Melee 21 | . . . . 21 . Knockbacks . | . . . . . . Impact . | . . . . . . Kinetic . | . . . . . . Secondary . | . . . . . . Self-Inflicted Damage 173 | . . . . . 173 Shots 6 | . . . . . 6 Rammed . | . . . . . . Targets Rammed . | . . . . . . Kicked . | . . . . . . Crushed . | . . . . . . Highest Temperature 407 | . 407 211 1 6 . Average Temperature 101 | . 112 58 1 4 . Received Heat Transfer 810 | . 336 117 42 270 45 Siege Activations . | . . . . . . Robots Corrupted . | . . . . . . Combat Hostiles . | . . . . . . Parts Fried . | . . . . . . Impact Corruptions . | . . . . . . Robots Melted 1 | . 1 . . . . Combat Hostiles 1 | . 1 . . . . Parts Melted 4 | . 3 . . 1 . Heat Transferred 2905 | . 2350 407 . 111 37 Parts Sabotaged . | . . . . . . Parts Stolen . | . . . . . . Parts Stripped . | . . . . . . Power Chain Reactions . | . . . . . . Alert | -11 -10 -9 -9 -8 -8 ------- Run | Yrd Mat Mat Min Mat Gar Peak Influence 261 | . 249 174 83 210 261 Initial 63 | . . 53 63 13 28 Average 82 | . 118 99 32 112 170 Maximum Alert Level 1 | . 1 . . 1 1 Low Security (%) 88 | 100 75 100 100 89 59 Level 1 11 | . 24 . . 10 40 Level 2 . | . . . . . . Level 3 . | . . . . . . Level 4 . | . . . . . . Level 5 . | . . . . . . High Security . | . . . . . . Max Security . | . . . . . . Squads Dispatched 6 | . 5 . . 1 . Investigation 3 | . 2 . . 1 . Extermination . | . . . . . . Reinforcement 3 | . 3 . . . . Assault . | . . . . . . Garrison . | . . . . . . Intercept . | . . . . . . Searches Triggered . | . . . . . . Construction Impeded . | . . . . . . Haulers Reinforced . | . . . . . . Active Scanning Responses . | . . . . . . Cargo Convoy Interrupts . | . . . . . . Stealth | -11 -10 -9 -9 -8 -8 --------- Run | Yrd Mat Mat Min Mat Gar Distress Signals 2 | . . 1 . 1 . Communications Jammed . | . . . . . . Distress Signals . | . . . . . . Times Spotted 76 | . 29 8 6 14 19 Peak Tracking Total 13 | . 5 3 3 4 13 Tactical Retreats 12 | . 4 1 2 4 1 Traps | -11 -10 -9 -9 -8 -8 ------- Run | Yrd Mat Mat Min Mat Gar Traps Triggered 8 | . 3 . . 3 2 Indirectly . | . . . . . . Trap Hack Attempts . | . . . . . . Triggered . | . . . . . . Disarmed . | . . . . . . Reprogrammed . | . . . . . . Reused . | . . . . . . Traps Extracted . | . . . . . . Installed 6 | . . . 2 . 4 Triggered . | . . . . . . Most Traps Carried 1 | . . . 1 1 . Machines | -11 -10 -9 -9 -8 -8 ---------- Run | Yrd Mat Mat Min Mat Gar Machines Disabled 3 | . . 1 . 1 1 Max in Single Turn 1 | . . 1 . 1 1 Garrison Relay 1 | . . . . . 1 Machines Repaired . | . . . . . . Machines Dismantled . | . . . . . . Machines Sabotaged . | . . . . . . Overloaded Fab Kills . | . . . . . . Hacking | -11 -10 -9 -9 -8 -8 --------- Run | Yrd Mat Mat Min Mat Gar Machines Accessed 7 | . . . 2 3 2 Terminals 6 | . . . 2 2 2 Fabricators . | . . . . . . Repair Stations . | . . . . . . Recycling Units . | . . . . . . Scanalyzers . | . . . . . . Garrison Access 1 | . . . . 1 . Total Hacks 14 | . . . 2 8 4 Successful 7 | . . . 2 4 1 Failed 7 | . . . . 4 3 Catastrophic 1 | . . . . . 1 Database Lockouts . | . . . . . . Manual 2 | . . . . 2 . Terminals 12 | . . . 2 6 4 Fabricators . | . . . . . . Repair Stations . | . . . . . . Recycling Units . | . . . . . . Scanalyzers . | . . . . . . Garrison Access 2 | . . . . 2 . Terminal Hacks 6 | . . . 2 3 1 Record 3 | . . . 1 2 . Alert Level 1 | . . . . 1 . Zone Layout 1 | . . . 1 . . Patrol Navigation 1 | . . . . . 1 Fabricator Hacks . | . . . . . . Repair Station Hacks . | . . . . . . Recycling Unit Hacks . | . . . . . . Scanalyzer . | . . . . . . Garrison Access Hacks 1 | . . . . 1 . Unlock Access 1 | . . . . 1 . Unauthorized Hacks . | . . . . . . Terminals . | . . . . . . Fabricators . | . . . . . . Repair Stations . | . . . . . . Recycling Units . | . . . . . . Scanalyzers . | . . . . . . Garrison Access . | . . . . . . Data Cores Recovered . | . . . . . . Used . | . . . . . . Hacking Detections 2 | . . . . 1 1 Full Trace Events 1 | . . . . . 1 Feedback Events . | . . . . . . Feedback Blocked . | . . . . . . Robot Schematics Acquired . | . . . . . . Robots Built . | . . . . . . Authchips . | . . . . . . Time . | . . . . . . Total Robot Build Rating . | . . . . . . Part Schematics Acquired . | . . . . . . Parts Built . | . . . . . . Authchips . | . . . . . . Time . | . . . . . . Total Part Build Rating . | . . . . . . Parts Repaired . | . . . . . . Time . | . . . . . . Parts Recycled . | . . . . . . Recycled Matter . | . . . . . . Retrieved Matter . | . . . . . . Retrieved Components . | . . . . . . Parts Scanalyzed . | . . . . . . Part Schematics Acquired . | . . . . . . Parts Damaged . | . . . . . . Bothacking | -11 -10 -9 -9 -8 -8 ------------ Run | Yrd Mat Mat Min Mat Gar Used RIF Installer . | . . . . . . Robots Hacked . | . . . . . . Non-combat . | . . . . . . Combat . | . . . . . . Robot Hacks Applied . | . . . . . . Relay Couplers Released 4 | . . . . . 4 Machine Destruction 4 | . . . . . 4 Fabnet Peak Effective % . | . . . . . . Robots Rewired . | . . . . . . Allies Hacked . | . . . . . . Hacks Repelled . | . . . . . . Allies | -11 -10 -9 -9 -8 -8 -------- Run | Yrd Mat Mat Min Mat Gar Total Allies 3 | . . . 3 . . Largest Group 3 | . . . 3 1 . Highest-Rated Group 40 | . . . 40 16 . Highest-Rated Ally 16 | . . . 16 16 . Total Orders . | . . . . . . Ally Attacks 25 | . . . 16 9 . Total Damage 206 | . . . 127 79 . Kills 2 | . . . 2 . . Allies Corrupted . | . . . . . . Allies Melted . | . . . . . . Intel | -11 -10 -9 -9 -8 -8 ------- Run | Yrd Mat Mat Min Mat Gar Robot Analysis Total . | . . . . . . Derelict Logs Recovered 1 | . . . 1 . . Drone Launches . | . . . . . . Drone Recoveries . | . . . . . . Exploration | -11 -10 -9 -9 -8 -8 ------------- Run | Yrd Mat Mat Min Mat Gar Turns Passed 2845 | 74 909 242 1084 412 124 Spaces Moved 1919 | 58 661 179 625 249 147 Core 32 | 16 . . . . 16 Treads 747 | . . 11 625 111 . Legs 93 | 42 51 . . . . Wheels 783 | . 610 168 . 5 . Hover 264 | . . . . 133 131 Flight . | . . . . . . Fastest Speed 48 | 50 95 95 160 48 52 Average Speed 119 | 100 105 103 160 103 66 Slowest Speed 305 | 120 125 240 160 305 300 Overloaded Moves . | . . . . . . Propulsion Burnouts . | . . . . . . Robots Hopped . | . . . . . . Cave-ins Triggered . | . . . . . . Exploration Rate (%) 47 | 5 82 27 98 37 36 Regions Visited 5 Branch Regions 1 Pre-discovered Areas . | . . . . . . Known Exits Taken 2 | . . . 1 1 . Unknown Exits Taken 3 | 1 1 1 . . . Scrap Searched 1 | . . . 1 . . Spaces Dug 1 | . . 1 . . . Terrain Destroyed 15 | . . 1 . . 14 Melee 1 | . . 1 . . . Projectile . | . . . . . . AOE 14 | . . . . . 14 Terrain Rammed . | . . . . . . Walls Destroyed . | . . . . . . Machines Disabled . | . . . . . . Actions | -11 -10 -9 -9 -8 -8 --------- Run | Yrd Mat Mat Min Mat Gar Total 2253 | 72 775 213 691 338 164 Wait 94 | . 36 5 46 7 . Move 1915 | 57 660 178 624 249 147 Hop . | . . . . . . Pick Up 37 | 9 12 8 3 5 . Fast Attach 17 | 3 1 1 . 12 . Attach 18 | 3 7 2 2 2 2 Detach 2 | . 1 . . 1 . Swap 18 | . 3 3 3 8 1 Drop 21 | . 3 1 2 15 . Fire 116 | . 52 14 9 32 9 Melee 8 | . . 1 . 7 . Ram . | . . . . . . Kick . | . . . . . . Crush . | . . . . . . Escape Stasis 1 | . . . . . 1 Rewire . | . . . . . . Trap 6 | . . . 2 . 4 Miscellaneous . | . . . . . . Route ------- -11/Scrapyard -10/Materials (discovered 3 exits: [*Mat x2] / [*Min]) -9/Materials -9/Mines (discovered 2 exits: *Mat x2) -8/Materials -8/Garrison History --------- Turn | Location | Event 10 | -11/Scrapyard | Discovered new exit (range 16) 75 | -11/Scrapyard | Entered Materials 305 | -10/Materials | Build established: Mutant 455 | -10/Materials | Discovered new exit (range 6) 608 | -10/Materials | Lost 3 parts (1n2w) 636 | -10/Materials | Core integrity fell below 50% 651 | -10/Materials | Discovered new exit (range 16) 886 | -10/Materials | Discovered new exit (range 16) 984 | -10/Materials | Entered another Materials area 984 | -9/Materials | Evolved 2 slots: Propulsion x1, Utility x1 1195 | -9/Materials | Discovered new exit (range 12) 1226 | -9/Materials | Entered Mines 1246 | -9/Mines | Identified exit to Materials 1247 | -9/Mines | Met a Derelict bent on vengeance 1251 | -9/Mines | Discovered exit to Materials (range 5) 1288 | -9/Mines | Build established: Infiltrator-Mutant 1289 | -9/Mines | Found a hidden stash of uninstalled traps 1658 | -9/Mines | Assisted by bots powering up and referring to "LRC-V3" 2310 | -9/Mines | Entered Materials 2310 | -8/Materials | Accompanied by 1 ally 2310 | -8/Materials | Evolved 2 slots: Propulsion x1, Utility x1 2615 | -8/Materials | Lost 3 parts (3n) 2722 | -8/Materials | Identified exit to Garrison 2722 | -8/Materials | Entered Garrison 2744 | -8/Garrison | Triggered checkpoint 2751 | -8/Garrison | Garrison Relay disabled 2786 | -8/Garrison | Lost 4 parts (3n1w) 2802 | -8/Garrison | Triggered checkpoint 2825 | -8/Garrison | Core integrity fell below 50% 2841 | -8/Garrison | Core integrity fell below 20% 2846 | -8/Garrison | Destroyed by X-57 Shotgunner with Shotgun Last Messages --------------- 02796_ ALERT: Suspicious activity at Terminal G005. Transmitting hostile system tracking data. Garrison Door activated. 02807_ Imp. Heat Sink destroyed. 02808_ Airjet destroyed. 02809_ Lgt. Deuterium Engine destroyed. 02813_ ECM Suite destroyed. 02824_ Airjet destroyed. 02824_ Triggered Fusion Bomb Trap. 02824_ An explosion rips through the floor. 02824_ Katana destroyed. 02824_ Storage Shell breached. 02825_ Storage Shell collapses. 02829_ Installed Segregator Trap. 02838_ Storage Shell collapses. 02840_ Structural Scanner destroyed. 02841_ The unstable cave ceiling collapses. 02841_ Storage Shell collapses. 02845_ S-10 Pest destroyed. Map ----- +----------------------------------------------------+ | ?????????????????????????????????????????????????? | | ?????????????????????????????????????????????????? | | ?????????????????????????????????????????????????? | | ?????????????????????????????????????????????????? | | ?????????????????????????????????????????????????? | | ?????????????????????????????????????????????????? | | ?????????????????????????????????????????????????? | | ?????????????????????????????????????????????????? | | ?????????????????????????????????????????????????? | | ?????????????????????????????????????????????????? | | ?????????????????????????????????????????????????? | | ?????????????????????????????????????????????????? | | ?????????????????????????????????????????????????? | | ????????????????????????????????####?????????????? | | ???????????????????????????????? #?????????????? | | ???????????????????????????????? #?????????????? | | ???????????????????????????????? #?????????????? | | ???????????????????????????????? #?????????????? | | ???????????????????????????????? #?????????????? | | ???????????????????###########?# #?????????????? | | ???????????????????" " "&&" #?# #?????????????? | | ???????????????????" "&& #?# #?????????????? | | ??????????????????#"" ### #?????????????? | | ??????????????????# ## #?????????????? | | ??????????????????# # ## #?????????????? | | ??????????????????# @ ## #?????????????? | | ??????????????????# m a ^ %ss #?????????????? | | ??????????????????# ssx #?????????????? | | ??????????????????# ##x #?????????????? | | ??????????????????# ### #?????????????? | | ??????????????????# ^^ &&" #?# #?????????????? | | ??????????????????# ^^ && #?# #?????????????? | | ??????????????????############?# #???????????### | | ???????????????????????????????# #???????????# | | ???????????????????????????????# ############# | | ???????????????????????????????# | | ???????????????????????????????# | | ???????????????????????????????# | | ???????????????????????????????#######+#### ## | | ?????????????????????????????????????#????# ## | | ????????????????????????????????????????? | | ????????????????????????????????????????# | | ????????????????????????????????????????# | | ????????????????????????????????????????# | | ????????????????????????????????????????### ## | | ??????????????????????????????????????????# ## | | ??????????????????????????????????????????# | | ??????????????????????????????????????????# | | ??????????????????????????????????????????# | | ??????????????????????????????????????????## ## | +----------------------------------------------------+ Best States ------------- Heat Dissipation 45 Energy Generation 14 Energy Capacity 250 Matter Stores 300 Matter Capacity 300 Sight Range 16 Terrain Scan Density 10 ECM Strength 1 Evasion (%) 55 Recoil Reduction 3 Item Schematics ----------------- None Robot Schematics ------------------ None Fabricated ------------ Nothing Alien Tech Used ----------------- None Achievements -------------- None Challenges ------------ None Game ------ Seed TowerRainbowExtractor Manual? 0 Play Time 00:29:14 Cumulative 232.8 hours Start 2025.05.01 @ 12:55:10 End 2025.05.01 @ 13:28:25 Sessions 1 Manual Loads 0 Difficulty Rogue Special Mode None Game No. 344 Rogue 344 Adventurer 0 Explorer 0 Win Type - Total 1 Types 1/0/0/0/0/0/0/0/0 Lore% 37 Gallery% 64 Achievement% 43 Wizard Run 0 Options --------- Layout 1 ASCII 0 Keyboard 0 Movement Mouse Keybinds 0 Fullscreen 2 Font 24/Smallcaps Map View 50x35 Zoom Use 0% Tactical HUD 1 Map Filters NONE Filters NONE Steam 1 RUN: a46f0af9-e808-4b09-aeb4-01ebec3c6bd5